[Event "*** Titled Tuesday Blitz"]
[Site "Chess.com"]
[Date "2021.04.06"]
[Round "2"]
[White "UKR_Master"]
[Black "AniJak"]
[Result "1-0"]
[WhiteElo "2531"]
[BlackElo "2288"]
[TimeControl "180+1"]
[EndTime "10:19:47 PDT"]
[Termination "UKR_Master won by checkmate"]

1. e4 {[%clk 0:03:00.9]} 1... c5 {[%clk 0:03:00]} 2. Nf3 {[%clk 0:03:01.3]} 2...
e6 {[%clk 0:03:00.4]} 3. c3 {[%clk 0:03:01.6]} 3... Nc6 {[%clk 0:02:59.4]} 4. d4
{[%clk 0:03:00.6]} 4... cxd4 {[%clk 0:02:58.6]} 5. cxd4 {[%clk 0:03:01.5]} 5...
d5 {[%clk 0:02:58.9]} 6. e5 {[%clk 0:03:00.7]} 6... Bb4+ {[%clk 0:02:50.9]} 7.
Bd2 {[%clk 0:02:59.7]} 7... Nge7 {[%clk 0:02:48.8]} 8. a3 {[%clk 0:02:58.3]}
8... Bxd2+ {[%clk 0:02:47.5]} 9. Qxd2 {[%clk 0:02:59.2]} 9... O-O {[%clk
0:02:46.8]} 10. Nc3 {[%clk 0:02:59.6]} 10... b6 {[%clk 0:02:44]} 11. Bd3 {[%clk
0:02:59.7]} 11... Na5 {[%clk 0:02:36.6]} 12. Qe2 {[%clk 0:02:57.5]} 12... Bd7
{[%clk 0:02:31.5]} 13. O-O {[%clk 0:02:57]} 13... Rc8 {[%clk 0:02:30.6]} 14.
Rac1 {[%clk 0:02:55.9]} 14... g6 {[%clk 0:02:25]} 15. Qd2 {[%clk 0:02:51.7]}
15... Nb3 {[%clk 0:02:23]} 16. Qh6 {[%clk 0:02:51.9]} 16... f6 {[%clk
0:02:11.1]} 17. exf6 {[%clk 0:02:49.6]} 17... Rxf6 {[%clk 0:02:11]} 18. Rce1
{[%clk 0:02:47.2]} 18... Nf5 {[%clk 0:02:02.1]} 19. Bxf5 {[%clk 0:02:36.2]}
19... Rxf5 {[%clk 0:02:03]} 20. Re3 {[%clk 0:02:31.5]} 20... Rxf3 {[%clk
0:01:59.4]} 21. Rxf3 {[%clk 0:02:30.9]} 21... Nxd4 {[%clk 0:01:59.5]} 22. Rh3
{[%clk 0:02:27.9]} 22... Qe7 {[%clk 0:01:58.5]} 23. Qe3 {[%clk 0:02:27.6]} 23...
e5 {[%clk 0:01:46.2]} 24. Rd1 {[%clk 0:01:44.6]} 24... Bxh3 {[%clk 0:01:08.6]}
25. Rxd4 {[%clk 0:01:43.9]} 25... Re8 {[%clk 0:01:04.2]} 26. Rxd5 {[%clk
0:01:39.6]} 26... Bf5 {[%clk 0:00:58.3]} 27. f3 {[%clk 0:01:30.9]} 27... e4
{[%clk 0:00:50.7]} 28. fxe4 {[%clk 0:01:22.7]} 28... Bxe4 {[%clk 0:00:48]} 29.
Rd4 {[%clk 0:01:03.9]} 29... Bc6 {[%clk 0:00:40.7]} 30. Qxe7 {[%clk 0:01:00.7]}
30... Rxe7 {[%clk 0:00:41.4]} 31. Kf2 {[%clk 0:01:01.2]} 31... Kg7 {[%clk
0:00:39.4]} 32. Rd6 {[%clk 0:00:58.3]} 32... Bb7 {[%clk 0:00:38]} 33. Nb5 {[%clk
0:00:56.9]} 33... Rf7+ {[%clk 0:00:38]} 34. Kg1 {[%clk 0:00:56.3]} 34... Be4
{[%clk 0:00:34.4]} 35. Nc3 {[%clk 0:00:53.4]} 35... Bb7 {[%clk 0:00:33.8]} 36.
Rd2 {[%clk 0:00:52.9]} 36... h5 {[%clk 0:00:32.9]} 37. Rf2 {[%clk 0:00:53.3]}
37... Rxf2 {[%clk 0:00:31.9]} 38. Kxf2 {[%clk 0:00:54.2]} 38... Bc6 {[%clk
0:00:31.9]} 39. g3 {[%clk 0:00:53.5]} 39... Kf6 {[%clk 0:00:32.2]} 40. Ke3
{[%clk 0:00:53.1]} 40... Ke5 {[%clk 0:00:32.1]} 41. Ne2 {[%clk 0:00:53.8]} 41...
g5 {[%clk 0:00:32.2]} 42. Nd4 {[%clk 0:00:54.1]} 42... Bd7 {[%clk 0:00:32.7]}
43. Nf3+ {[%clk 0:00:52.3]} 43... Kf5 {[%clk 0:00:31.9]} 44. Kd4 {[%clk
0:00:52]} 44... Kg4 {[%clk 0:00:30.7]} 45. Ne5+ {[%clk 0:00:45.3]} 45... Kh3
{[%clk 0:00:30.9]} 46. Nxd7 {[%clk 0:00:45.6]} 46... Kxh2 {[%clk 0:00:31.2]} 47.
Nf6 {[%clk 0:00:43.6]} 47... h4 {[%clk 0:00:21.5]} 48. gxh4 {[%clk 0:00:43.9]}
48... gxh4 {[%clk 0:00:21.9]} 49. Ke3 {[%clk 0:00:42.3]} 49... Kg3 {[%clk
0:00:16.8]} 50. Ne4+ {[%clk 0:00:41.8]} 50... Kg2 {[%clk 0:00:17.1]} 51. Ng5
{[%clk 0:00:41.4]} 51... Kg3 {[%clk 0:00:16.5]} 52. b4 {[%clk 0:00:34]} 52...
Kg4 {[%clk 0:00:14.8]} 53. Nf3 {[%clk 0:00:31.1]} 53... h3 {[%clk 0:00:13.7]}
54. Kf2 {[%clk 0:00:30.2]} 54... Kf4 {[%clk 0:00:13.8]} 55. Nd4 {[%clk
0:00:30.3]} 55... Ke4 {[%clk 0:00:13.1]} 56. Nc6 {[%clk 0:00:30.3]} 56... a6
{[%clk 0:00:10.3]} 57. Nb8 {[%clk 0:00:30.4]} 57... a5 {[%clk 0:00:10.4]} 58. b5
{[%clk 0:00:24.9]} 58... Kd4 {[%clk 0:00:08.6]} 59. Nd7 {[%clk 0:00:24.1]} 59...
Kc4 {[%clk 0:00:08.4]} 60. a4 {[%clk 0:00:22.5]} 60... Kb4 {[%clk 0:00:07.1]}
61. Nxb6 {[%clk 0:00:22.7]} 61... Kc5 {[%clk 0:00:06]} 62. Kg3 {[%clk
0:00:22.6]} 62... Kxb6 {[%clk 0:00:05.7]} 63. Kxh3 {[%clk 0:00:22.4]} 63... Kc5
{[%clk 0:00:06.2]} 64. Kg4 {[%clk 0:00:22.2]} 64... Kb4 {[%clk 0:00:07.1]} 65.
Kf5 {[%clk 0:00:22]} 65... Kxa4 {[%clk 0:00:06.8]} 66. b6 {[%clk 0:00:22.2]}
66... Kb3 {[%clk 0:00:07.2]} 67. b7 {[%clk 0:00:22.2]} 67... a4 {[%clk
0:00:08.1]} 68. b8=Q+ {[%clk 0:00:22.9]} 68... Ka2 {[%clk 0:00:05.9]} 69. Ke4
{[%clk 0:00:21]} 69... a3 {[%clk 0:00:06.1]} 70. Kd3 {[%clk 0:00:20.7]} 70...
Ka1 {[%clk 0:00:06.6]} 71. Kc2 {[%clk 0:00:21.4]} 71... a2 {[%clk 0:00:07.1]}
72. Qh8# {[%clk 0:00:22]} 1-0

[Event "*** Titled Tuesday Blitz"]
[Site "Chess.com"]
[Date "2021.04.06"]
[Round "2"]
[White "DonPreuss"]
[Black "IANOV0007"]
[Result "0-1"]
[WhiteElo "2246"]
[BlackElo "2468"]
[TimeControl "180+1"]
[EndTime "10:19:54 PDT"]
[Termination "IANOV0007 won on time"]

1. d4 {[%clk 0:03:00.9]} 1... d6 {[%clk 0:02:59.4]} 2. e4 {[%clk 0:03:00.8]}
2... Nf6 {[%clk 0:02:58.3]} 3. Nc3 {[%clk 0:03:01.7]} 3... c6 {[%clk 0:02:58.1]}
4. f4 {[%clk 0:03:02.2]} 4... Qb6 {[%clk 0:02:57.1]} 5. Nf3 {[%clk 0:03:02.8]}
5... Bg4 {[%clk 0:02:56]} 6. Be2 {[%clk 0:02:23.5]} 6... Bxf3 {[%clk 0:02:54]}
7. Bxf3 {[%clk 0:02:23.3]} 7... e5 {[%clk 0:02:53.3]} 8. fxe5 {[%clk 0:02:22.3]}
8... dxe5 {[%clk 0:02:51.5]} 9. dxe5 {[%clk 0:02:15.2]} 9... Nfd7 {[%clk
0:02:49.9]} 10. Qe2 {[%clk 0:02:08.8]} 10... Nxe5 {[%clk 0:02:48.6]} 11. Rb1
{[%clk 0:01:54.2]} 11... Bc5 {[%clk 0:02:42.5]} 12. Bf4 {[%clk 0:01:46.2]} 12...
Nbd7 {[%clk 0:02:37.8]} 13. Rf1 {[%clk 0:01:35.7]} 13... Bd4 {[%clk 0:02:36.1]}
14. Nd1 {[%clk 0:01:28.4]} 14... Qa5+ {[%clk 0:02:28.9]} 15. c3 {[%clk
0:01:23.2]} 15... Bb6 {[%clk 0:02:22.7]} 16. a3 {[%clk 0:01:19.8]} 16... O-O
{[%clk 0:02:18.9]} 17. Be3 {[%clk 0:01:19.9]} 17... Rae8 {[%clk 0:02:12.3]} 18.
Bxb6 {[%clk 0:01:16]} 18... Qxb6 {[%clk 0:02:08.2]} 19. Ne3 {[%clk 0:01:16.2]}
19... Nc5 {[%clk 0:02:00.7]} 20. Kf2 {[%clk 0:01:02.7]} 20... Ncd3+ {[%clk
0:01:54.3]} 21. Kg1 {[%clk 0:01:01.9]} 21... f5 {[%clk 0:01:44.5]} 22. Kh1
{[%clk 0:00:57.2]} 22... Nxf3 {[%clk 0:01:34.8]} 23. gxf3 {[%clk 0:00:53.7]}
23... fxe4 {[%clk 0:01:31.9]} 24. fxe4 {[%clk 0:00:44.4]} 24... Rxf1+ {[%clk
0:01:18.5]} 25. Rxf1 {[%clk 0:00:34.9]} 25... Ne5 {[%clk 0:01:17.2]} 26. Nc4
{[%clk 0:00:32.4]} 26... Qb5 {[%clk 0:01:12.9]} 27. b3 {[%clk 0:00:26.1]} 27...
Nxc4 {[%clk 0:01:08.5]} 28. bxc4 {[%clk 0:00:25.5]} 28... Qe5 {[%clk 0:01:07.5]}
29. Re1 {[%clk 0:00:22.5]} 29... Qxc3 {[%clk 0:01:05.7]} 30. e5 {[%clk
0:00:21.9]} 30... Qxa3 {[%clk 0:01:04]} 31. e6 {[%clk 0:00:21]} 31... Qd6 {[%clk
0:01:02.7]} 32. Qe4 {[%clk 0:00:20.7]} 32... g6 {[%clk 0:01:01.5]} 33. h4 {[%clk
0:00:19.5]} 33... Qg3 {[%clk 0:00:58.9]} 34. Re3 {[%clk 0:00:18.3]} 34... Qd6
{[%clk 0:00:54.5]} 35. e7 {[%clk 0:00:16.4]} 35... a5 {[%clk 0:00:51.2]} 36. c5
{[%clk 0:00:15.1]} 36... Qf6 {[%clk 0:00:47.5]} 37. Kg1 {[%clk 0:00:09.8]} 37...
Kg7 {[%clk 0:00:44.4]} 38. Re2 {[%clk 0:00:05.7]} 38... a4 {[%clk 0:00:40.7]}
39. h5 {[%clk 0:00:03.8]} 39... Qg5+ {[%clk 0:00:39.6]} 40. Rg2 {[%clk
0:00:03.2]} 40... Qxh5 {[%clk 0:00:38.2]} 41. Qd4+ {[%clk 0:00:02.6]} 41... Kg8
{[%clk 0:00:35.3]} 42. Qf6 {[%clk 0:00:02.9]} 42... Qd1+ {[%clk 0:00:29.3]} 43.
Kh2 {[%clk 0:00:03.4]} 43... Qe1 {[%clk 0:00:27.7]} 44. Rf2 {[%clk 0:00:03.5]}
44... Qxe7 {[%clk 0:00:27]} 45. Qf3 {[%clk 0:00:02.5]} 45... Qe5+ {[%clk
0:00:26.7]} 46. Kg1 {[%clk 0:00:02]} 46... Qe1+ {[%clk 0:00:26]} 47. Kh2 {[%clk
0:00:02.3]} 47... Qe5+ {[%clk 0:00:25.4]} 48. Kh1 {[%clk 0:00:02.7]} 48... Qe7
{[%clk 0:00:25.4]} 49. Kg1 {[%clk 0:00:02.9]} 49... a3 {[%clk 0:00:23.5]} 50.
Qxa3 {[%clk 0:00:02.5]} 50... Qe1+ {[%clk 0:00:19.9]} 51. Kg2 {[%clk 0:00:02.4]}
51... Qe4+ {[%clk 0:00:18.5]} 52. Kg1 {[%clk 0:00:02.1]} 52... Qd4 {[%clk
0:00:17.9]} 53. Qb3+ {[%clk 0:00:02.3]} 53... Kh8 {[%clk 0:00:16.7]} 54. Qf7
{[%clk 0:00:03.2]} 54... Rd8 {[%clk 0:00:15.5]} 55. Kg2 {[%clk 0:00:03.5]} 55...
Qd5+ {[%clk 0:00:14.9]} 56. Kg1 {[%clk 0:00:03.2]} 56... Qxf7 {[%clk 0:00:14.1]}
57. Rxf7 {[%clk 0:00:02.8]} 57... Rd5 {[%clk 0:00:14.1]} 58. Rxb7 {[%clk
0:00:02.8]} 58... Rxc5 {[%clk 0:00:14.3]} 59. Kg2 {[%clk 0:00:03.7]} 59... h5
{[%clk 0:00:14.3]} 60. Kg3 {[%clk 0:00:04.6]} 60... Rc4 {[%clk 0:00:14.4]} 61.
Kh3 {[%clk 0:00:04.6]} 61... g5 {[%clk 0:00:14.5]} 62. Kg3 {[%clk 0:00:05.5]}
62... Rc3+ {[%clk 0:00:14.4]} 63. Kg2 {[%clk 0:00:05.4]} 63... g4 {[%clk
0:00:14.6]} 64. Rc7 {[%clk 0:00:04.6]} 64... h4 {[%clk 0:00:14.4]} 65. Kh2
{[%clk 0:00:04.9]} 65... Rc2+ {[%clk 0:00:14.5]} 66. Kg1 {[%clk 0:00:05.6]}
66... g3 {[%clk 0:00:14.8]} 67. Kh1 {[%clk 0:00:04.7]} 67... h3 {[%clk 0:00:15]}
68. Rc8+ {[%clk 0:00:02.8]} 68... Kh7 {[%clk 0:00:13.6]} 69. Rc7+ {[%clk
0:00:02.9]} 69... Kh6 {[%clk 0:00:13.8]} 0-1

[Event "*** Titled Tuesday Blitz"]
[Site "Chess.com"]
[Date "2021.04.06"]
[Round "2"]
[White "olksuna"]
[Black "Grieve72"]
[Result "0-1"]
[WhiteElo "2678"]
[BlackElo "2498"]
[TimeControl "180+1"]
[EndTime "10:20:00 PDT"]
[Termination "Grieve72 won by resignation"]

1. e4 {[%clk 0:03:00.9]} 1... c5 {[%clk 0:02:59.9]} 2. Nf3 {[%clk 0:03:00.8]}
2... e6 {[%clk 0:03:00.5]} 3. d4 {[%clk 0:03:01.1]} 3... cxd4 {[%clk 0:03:01.4]}
4. Nxd4 {[%clk 0:03:01.6]} 4... Nc6 {[%clk 0:03:02.1]} 5. Nc3 {[%clk 0:03:01.8]}
5... Qc7 {[%clk 0:03:02.8]} 6. Be2 {[%clk 0:03:02.2]} 6... a6 {[%clk 0:03:03.2]}
7. O-O {[%clk 0:03:02.2]} 7... Nf6 {[%clk 0:03:03.8]} 8. Be3 {[%clk 0:03:02.6]}
8... Bb4 {[%clk 0:03:04.4]} 9. Nxc6 {[%clk 0:03:02.5]} 9... bxc6 {[%clk
0:03:03.9]} 10. Qd4 {[%clk 0:03:02.6]} 10... c5 {[%clk 0:03:02.6]} 11. Qc4
{[%clk 0:03:02.6]} 11... O-O {[%clk 0:03:02.8]} 12. Na4 {[%clk 0:02:47.9]} 12...
d5 {[%clk 0:02:59.6]} 13. exd5 {[%clk 0:02:45.4]} 13... exd5 {[%clk 0:02:58.1]}
14. Qb3 {[%clk 0:02:32.2]} 14... Be6 {[%clk 0:02:44.3]} 15. c4 {[%clk
0:02:05.1]} 15... Rab8 {[%clk 0:01:55.6]} 16. Qc2 {[%clk 0:01:57.9]} 16... d4
{[%clk 0:01:21.9]} 17. Bg5 {[%clk 0:01:54.4]} 17... Ng4 {[%clk 0:01:21.7]} 18.
g3 {[%clk 0:01:36.9]} 18... Rbe8 {[%clk 0:00:52.3]} 19. b3 {[%clk 0:01:20.8]}
19... Ba5 {[%clk 0:00:47.5]} 20. Bf3 {[%clk 0:01:15.7]} 20... Ne5 {[%clk
0:00:45]} 21. Bg2 {[%clk 0:01:10.8]} 21... Bg4 {[%clk 0:00:35.4]} 22. Bf4 {[%clk
0:01:02.6]} 22... Qa7 {[%clk 0:00:11.7]} 23. h3 {[%clk 0:00:51.1]} 23... Bh5
{[%clk 0:00:08.5]} 24. Nb2 {[%clk 0:00:43.4]} 24... Qd7 {[%clk 0:00:05.7]} 25.
Bxe5 {[%clk 0:00:35.6]} 25... Rxe5 {[%clk 0:00:05.6]} 26. g4 {[%clk 0:00:36.1]}
26... Bg6 {[%clk 0:00:05.5]} 27. Nd3 {[%clk 0:00:36.8]} 27... Re7 {[%clk
0:00:03.4]} 28. Rad1 {[%clk 0:00:32.9]} 28... Qd6 {[%clk 0:00:02.6]} 29. Qc1
{[%clk 0:00:30.5]} 29... Rfe8 {[%clk 0:00:02.1]} 30. Nf4 {[%clk 0:00:29.3]}
30... Be4 {[%clk 0:00:02.6]} 31. Nd5 {[%clk 0:00:24.3]} 31... Bxd5 {[%clk
0:00:02.1]} 32. Bxd5 {[%clk 0:00:22.7]} 32... Bc7 {[%clk 0:00:02.5]} 33. f4
{[%clk 0:00:22.9]} 33... Qh6 {[%clk 0:00:02.7]} 34. Bg2 {[%clk 0:00:18.1]} 34...
Qh4 {[%clk 0:00:02.7]} 35. Qd2 {[%clk 0:00:13.3]} 35... Re3 {[%clk 0:00:03.2]}
36. Qf2 {[%clk 0:00:13.1]} 36... Qf6 {[%clk 0:00:03.8]} 37. g5 {[%clk
0:00:08.7]} 37... Qf5 {[%clk 0:00:03.6]} 38. Rde1 {[%clk 0:00:06.8]} 38... g6
{[%clk 0:00:02.7]} 39. Rxe3 {[%clk 0:00:04.4]} 39... Rxe3 {[%clk 0:00:03.6]} 40.
Kh1 {[%clk 0:00:02.7]} 40... Qe6 {[%clk 0:00:03.5]} 41. Kg1 {[%clk 0:00:02.9]}
41... Qe7 {[%clk 0:00:03.4]} 42. Kh1 {[%clk 0:00:02.8]} 42... Re2 {[%clk
0:00:03.8]} 43. Qf3 {[%clk 0:00:03]} 43... Kg7 {[%clk 0:00:02.7]} 44. Qd5 {[%clk
0:00:03]} 44... Bd6 {[%clk 0:00:01.9]} 45. f5 {[%clk 0:00:03.5]} 45... gxf5
{[%clk 0:00:01.9]} 46. Qxf5 {[%clk 0:00:04.3]} 46... Re3 {[%clk 0:00:02.4]} 47.
Qf6+ {[%clk 0:00:04.8]} 47... Qxf6 {[%clk 0:00:02.9]} 48. gxf6+ {[%clk
0:00:05.5]} 48... Kg6 {[%clk 0:00:02.9]} 49. Rg1 {[%clk 0:00:04.4]} 49... Kf5
{[%clk 0:00:02.8]} 50. Rf1+ {[%clk 0:00:04.5]} 50... Ke6 {[%clk 0:00:03.2]} 51.
Bd5+ {[%clk 0:00:04.7]} 51... Ke5 {[%clk 0:00:03.7]} 52. Bxf7 {[%clk 0:00:05.6]}
52... d3 {[%clk 0:00:03]} 53. Bh5 {[%clk 0:00:03.5]} 53... d2 {[%clk 0:00:03.3]}
54. Kg2 {[%clk 0:00:02.5]} 54... Re1 {[%clk 0:00:03]} 55. f7 {[%clk 0:00:02.7]}
55... Kd4 {[%clk 0:00:03]} 56. Bd1 {[%clk 0:00:02.3]} 56... Bf8 {[%clk
0:00:02.8]} 57. Bh5 {[%clk 0:00:01.8]} 57... Kc3 {[%clk 0:00:02.8]} 58. Bg4
{[%clk 0:00:02.1]} 58... Kc2 {[%clk 0:00:03.3]} 59. h4 {[%clk 0:00:02.7]} 59...
Rxf1 {[%clk 0:00:03.7]} 60. Kxf1 {[%clk 0:00:02.1]} 60... d1=Q+ {[%clk
0:00:04.6]} 61. Bxd1+ {[%clk 0:00:02.6]} 61... Kxd1 {[%clk 0:00:05.5]} 62. Kf2
{[%clk 0:00:03.3]} 62... Kc2 {[%clk 0:00:05.7]} 63. Kf3 {[%clk 0:00:03]} 63...
Kb2 {[%clk 0:00:06.2]} 64. b4 {[%clk 0:00:02.3]} 64... cxb4 {[%clk 0:00:05.4]}
65. Ke4 {[%clk 0:00:02.7]} 65... Kxa2 {[%clk 0:00:05.9]} 66. c5 {[%clk
0:00:02.8]} 66... Bxc5 {[%clk 0:00:05.5]} 67. Kd5 {[%clk 0:00:03.7]} 67... Bf8
{[%clk 0:00:05.8]} 68. Kc4 {[%clk 0:00:04.6]} 68... b3 {[%clk 0:00:06.2]} 0-1

[Event "*** Titled Tuesday Blitz"]
[Site "Chess.com"]
[Date "2021.04.06"]
[Round "2"]
[White "Susal_De_Silva"]
[Black "Dave_ChessMate"]
[Result "1/2-1/2"]
[WhiteElo "2679"]
[BlackElo "2488"]
[TimeControl "180+1"]
[EndTime "10:20:05 PDT"]
[Termination "Game drawn - insufficient material"]

1. e4 {[%clk 0:03:00.9]} 1... c5 {[%clk 0:02:59.9]} 2. Nf3 {[%clk 0:03:01.2]}
2... Nc6 {[%clk 0:03:00.1]} 3. Bb5 {[%clk 0:03:01.6]} 3... e5 {[%clk 0:02:59.5]}
4. Bxc6 {[%clk 0:03:00.5]} 4... dxc6 {[%clk 0:02:59.6]} 5. O-O {[%clk
0:03:00.9]} 5... Bd6 {[%clk 0:02:56.9]} 6. d3 {[%clk 0:03:01]} 6... Ne7 {[%clk
0:02:55]} 7. Nc3 {[%clk 0:03:00.7]} 7... O-O {[%clk 0:02:53]} 8. a4 {[%clk
0:02:58.9]} 8... f6 {[%clk 0:02:51.7]} 9. Be3 {[%clk 0:02:58.4]} 9... Be6 {[%clk
0:02:50.5]} 10. Nd2 {[%clk 0:02:56.8]} 10... Qc7 {[%clk 0:02:45.1]} 11. a5
{[%clk 0:02:55.9]} 11... b6 {[%clk 0:02:44.1]} 12. Nc4 {[%clk 0:02:46.1]} 12...
Rfd8 {[%clk 0:02:28.9]} 13. Qe2 {[%clk 0:02:30.9]} 13... b5 {[%clk 0:02:23.6]}
14. Nxd6 {[%clk 0:02:26.8]} 14... Qxd6 {[%clk 0:02:24.5]} 15. f4 {[%clk
0:02:24.1]} 15... c4 {[%clk 0:02:09.5]} 16. Qf2 {[%clk 0:01:45.4]} 16... cxd3
{[%clk 0:01:52.5]} 17. Bxa7 {[%clk 0:01:27.5]} 17... exf4 {[%clk 0:01:36.9]} 18.
Bc5 {[%clk 0:01:24.7]} 18... Qc7 {[%clk 0:01:35.7]} 19. Bb6 {[%clk 0:01:23.7]}
19... Qe5 {[%clk 0:01:28.9]} 20. Bxd8 {[%clk 0:01:21.9]} 20... Rxd8 {[%clk
0:01:29.8]} 21. cxd3 {[%clk 0:01:20.4]} 21... g5 {[%clk 0:01:18.9]} 22. a6
{[%clk 0:01:18.8]} 22... Ra8 {[%clk 0:01:11.9]} 23. a7 {[%clk 0:01:17.4]} 23...
Qd6 {[%clk 0:00:31.8]} 24. Qb6 {[%clk 0:01:08.3]} 24... Nc8 {[%clk 0:00:29.6]}
25. Qb7 {[%clk 0:01:07.3]} 25... Qd4+ {[%clk 0:00:27.7]} 26. Kh1 {[%clk
0:01:05.5]} 26... Rxa7 {[%clk 0:00:27.7]} 27. Qxc6 {[%clk 0:00:59.7]} 27... Qd7
{[%clk 0:00:23.4]} 28. Qxb5 {[%clk 0:00:50.5]} 28... Qxb5 {[%clk 0:00:23.4]} 29.
Nxb5 {[%clk 0:00:51.4]} 29... Rb7 {[%clk 0:00:24.3]} 30. Nd4 {[%clk 0:00:50.8]}
30... Bd7 {[%clk 0:00:21.3]} 31. Rab1 {[%clk 0:00:49.5]} 31... Rb4 {[%clk
0:00:18.9]} 32. Ne2 {[%clk 0:00:48.4]} 32... Ne7 {[%clk 0:00:18.8]} 33. Nc3
{[%clk 0:00:48.5]} 33... Bc6 {[%clk 0:00:16.7]} 34. Rfd1 {[%clk 0:00:48.2]}
34... f5 {[%clk 0:00:13.3]} 35. e5 {[%clk 0:00:42.6]} 35... f3 {[%clk
0:00:11.2]} 36. d4 {[%clk 0:00:35.1]} 36... fxg2+ {[%clk 0:00:10.9]} 37. Kg1
{[%clk 0:00:35.8]} 37... Bf3 {[%clk 0:00:08.6]} 38. Rd3 {[%clk 0:00:33.8]} 38...
g4 {[%clk 0:00:08.6]} 39. d5 {[%clk 0:00:30]} 39... Ng6 {[%clk 0:00:05.8]} 40.
d6 {[%clk 0:00:26.4]} 40... Nf4 {[%clk 0:00:06.1]} 41. Rxf3 {[%clk 0:00:15.6]}
41... gxf3 {[%clk 0:00:07]} 42. Kf2 {[%clk 0:00:16.5]} 42... Rxb2+ {[%clk
0:00:04.2]} 43. Rxb2 {[%clk 0:00:13]} 43... Nd3+ {[%clk 0:00:04.8]} 44. Kxf3
{[%clk 0:00:13.9]} 44... g1=Q {[%clk 0:00:01.1]} 45. Rg2+ {[%clk 0:00:14.8]}
45... Qxg2+ {[%clk 0:00:01.3]} 46. Kxg2 {[%clk 0:00:15.7]} 46... Nxe5 {[%clk
0:00:01.9]} 47. Nb5 {[%clk 0:00:16.4]} 47... Kf7 {[%clk 0:00:01.6]} 48. Kg3
{[%clk 0:00:17.3]} 48... Ke6 {[%clk 0:00:02]} 49. Kf4 {[%clk 0:00:18.2]} 49...
Nd7 {[%clk 0:00:01.8]} 50. Ke3 {[%clk 0:00:15.2]} 50... Nb6 {[%clk 0:00:01.6]}
51. Kd4 {[%clk 0:00:15.6]} 51... f4 {[%clk 0:00:01.6]} 52. Ke4 {[%clk
0:00:15.7]} 52... Kd7 {[%clk 0:00:02.1]} 53. Kxf4 {[%clk 0:00:16.1]} 53... Kc6
{[%clk 0:00:02.6]} 54. Nd4+ {[%clk 0:00:13.5]} 54... Kxd6 {[%clk 0:00:03]} 55.
Kf5 {[%clk 0:00:14.3]} 55... Ke7 {[%clk 0:00:03.2]} 56. Kg5 {[%clk 0:00:14.8]}
56... Kf7 {[%clk 0:00:03.3]} 57. Kh6 {[%clk 0:00:15.7]} 57... Kg8 {[%clk
0:00:03.6]} 58. Nf5 {[%clk 0:00:15.6]} 58... Nd5 {[%clk 0:00:04]} 59. h3 {[%clk
0:00:16.5]} 59... Nf6 {[%clk 0:00:04]} 60. Kg5 {[%clk 0:00:16.4]} 60... Kf7
{[%clk 0:00:03.8]} 61. Nh6+ {[%clk 0:00:15.1]} 61... Kg7 {[%clk 0:00:04.2]} 62.
Nf5+ {[%clk 0:00:16]} 62... Kf7 {[%clk 0:00:04.6]} 63. h4 {[%clk 0:00:16.1]}
63... Ng8 {[%clk 0:00:03.8]} 64. Nd6+ {[%clk 0:00:15.4]} 64... Kg7 {[%clk
0:00:03.8]} 65. h5 {[%clk 0:00:15.9]} 65... h6+ {[%clk 0:00:04]} 66. Kf5 {[%clk
0:00:16.5]} 66... Ne7+ {[%clk 0:00:04.4]} 67. Ke6 {[%clk 0:00:17.4]} 67... Ng8
{[%clk 0:00:03.9]} 68. Ne8+ {[%clk 0:00:17.6]} 68... Kf8 {[%clk 0:00:03.9]} 69.
Nc7 {[%clk 0:00:16.6]} 69... Kg7 {[%clk 0:00:04.1]} 70. Nb5 {[%clk 0:00:16.7]}
70... Nf6 {[%clk 0:00:04.3]} 71. Nd6 {[%clk 0:00:13.6]} 71... Nxh5 {[%clk
0:00:03.3]} 72. Nf5+ {[%clk 0:00:14.5]} 72... Kg6 {[%clk 0:00:03.7]} 73. Nxh6
{[%clk 0:00:15.2]} 1/2-1/2